{"text_format":"1","workbook":"xlsx","n_sheets":3,"sheets":["registro","datos","Presentacion"],"not_rendered":{"charts":0,"images":2,"macros":1,"external_links":0,"defined_names":0,"comments":0,"pivot_tables":0},"unopened":[],"bounds":{"document_bytes":16777216,"sheet_cells":100000,"rows_first":2000,"rows_last":500,"rows_between":2000,"halvings":0,"cell_chars":16384,"cell_head_chars":4096},"cells_cut":0,"cells_raw":0,"read":"whole","date_system":"1900"}

{"sheet":"registro","index":0,"n_rows":2,"n_cols":13,"rows_kept":2,"cut":false,"hidden":false,"merged":[]}
["Nombres","Apellidos","Género","Correo Electrónico","Fecha de Nacimiento","País de Nacimiento","Teléfono","Experiencia","Empresa","Cargo","Universidad","Año de Graduación","Grado Universitario"]
["omar","cuba","Masculino","omar_cuba@hotmail.com","31/01/1980","Perú",5251991,"De 5 a 10 años","osinfor","jefe","uni",2003,"Magister"]

{"sheet":"datos","index":1,"n_rows":44,"n_cols":5,"rows_kept":44,"cut":false,"hidden":false,"merged":[]}
["Pais","Tiempo de experiencia","Grado Académico","Genero","Año Graduación"]
["Perú","Menos de 6 meses","Estudiante","Masculino",1970]
["Brasil","De 6 meses a 1 año","Egresado","Femenino",{"$f":"+E2+1","v":1971}]
["Ecuador","De 1 a 2 años","Bachiller",null,{"$f":"+E3+1","v":1972}]
["Colombia","De 2 a 5 años","Titulado",null,1973]
["Chile","De 5 a 10 años","Magister",null,1974]
["Argentina","De 10 años a más","Doctor",null,1975]
["Uruguay",null,null,null,1976]
["Bolivia",null,null,null,1977]
["Panamá",null,null,null,1978]
["Costa Rica ",null,null,null,1979]
["Mexico",null,null,null,1980]
["Nicaragua",null,null,null,1981]
["Cuba",null,null,null,1982]
["Haiti",null,null,null,1983]
["Venezuela",null,null,null,1984]
["Paraguay",null,null,null,1985]
["Guyana Francesa",null,null,null,1986]
[null,null,null,null,1987]
[null,null,null,null,1988]
[null,null,null,null,1989]
[null,null,null,null,1990]
[null,null,null,null,1991]
[null,null,null,null,1992]
[null,null,null,null,1993]
[null,null,null,null,1994]
[null,null,null,null,1995]
[null,null,null,null,1996]
[null,null,null,null,1997]
[null,null,null,null,1998]
[null,null,null,null,1999]
[null,null,null,null,2000]
[null,null,null,null,2001]
[null,null,null,null,2002]
[null,null,null,null,2003]
[null,null,null,null,2004]
[null,null,null,null,2005]
[null,null,null,null,2006]
[null,null,null,null,2007]
[null,null,null,null,2008]
[null,null,null,null,2009]
[null,null,null,null,2010]
[null,null,null,null,2011]
[null,null,null,null,2012]

{"sheet":"Presentacion","index":2,"n_rows":10,"n_cols":1,"rows_kept":10,"cut":false,"hidden":false,"merged":[]}
[]
[]
[]
[]
[]
[]
[]
[]
["BIENVENIDOS A LA CONFERENCIA DE COMO LIDERAR SU PROPIA EMPRESA"]
["PARA INICIAR SU INCRIPCIÓN HACER CLIC:"]